lending/lending_fUSD_20240621
["ID","MTS","AMOUNT","RATE_DAILY","PERIOD"]
[330092782,1718989944484,-536.27224311,0.00027397,2]
[330092783,1718989944496,-536.27224311,0.00027397,2]
[330092784,1718989944508,-536.27224311,0.00027397,2]
[330092785,1718989944520,-536.27224311,0.00027397,2]
[330092786,1718989944532,-536.27224311,0.00027397,2]
[330092787,1718989944544,-536.27224311,0.00027397,2]
[330092788,1718989944556,-536.27224311,0.00027397,2]
[330092789,1718989944568,-536.27224311,0.00027397,2]
[330092790,1718989944580,-536.27224311,0.00027397,2]
[330092791,1718989944598,-536.27224311,0.00027397,2]
[330092792,1718989944610,-536.27224311,0.00027397,2]
[330092793,1718989944623,-536.27224311,0.00027397,2]
[330092794,1718989944635,-736.5,0.00027397,4]
[330092795,1718989944648,-200.0,0.00027397,60]
[330092796,1718989944660,-500.0,0.00027397,6]
[330092797,1718989944672,-500.0,0.00027397,6]
[330092798,1718989944684,-500.0,0.00027397,6]
[330092799,1718989944695,-500.0,0.00027397,6]
[330092800,1718989944707,-500.0,0.00027397,6]
[330092801,1718989944720,-500.0,0.00027397,6]
[330092802,1718989945155,-508.0,0.00027397,6]
[330092803,1718989945186,-500.0,0.00027397,6]
[330092804,1718989945207,-500.0,0.00027397,6]
[330092805,1718989945216,-500.0,0.00027397,6]
[330092806,1718989945230,-500.0,0.00027397,6]
[330092807,1718989945239,-500.0,0.00027397,6]
[330092808,1718989945248,-500.0,0.00027397,6]
[330092809,1718989945259,-500.0,0.00027397,6]
[330092810,1718989945268,-500.0,0.00027397,6]
[330092811,1718989945278,-500.0,0.00027397,6]
[330092812,1718989945287,-500.0,0.00027397,6]
[330092813,1718989945297,-500.0,0.00027397,6]
[330092814,1718989945307,-500.0,0.00027397,6]
[330092815,1718989945316,-500.0,0.00027397,6]
[330092816,1718989945325,-500.0,0.00027397,6]
[330092817,1718989945335,-500.0,0.00027397,6]
[330092818,1718989945345,-500.0,0.00027397,6]
[330092819,1718989945355,-500.0,0.00027397,6]
[330092820,1718989945365,-500.0,0.00027397,6]
[330092821,1718989945375,-500.0,0.00027397,6]
[330092822,1718989945385,-500.0,0.00027397,6]
[330092823,1718989945395,-500.0,0.00027397,6]
[330092824,1718989945405,-500.0,0.00027397,6]
[330092825,1718989945414,-500.0,0.00027397,6]
[330092826,1718989945423,-500.0,0.00027397,6]
[330092827,1718989945433,-500.0,0.00027397,6]
[330092828,1718989945443,-500.0,0.00027397,6]
[330092829,1718989945452,-500.0,0.00027397,6]
[330092830,1718989945462,-500.0,0.00027397,6]
[330092831,1718989945472,-500.0,0.00027397,6]
[330092832,1718989945484,-500.0,0.00027397,6]
[330092833,1718989945494,-500.0,0.00027397,6]
[330092834,1718989945503,-500.0,0.00027397,6]
[330092835,1718989945512,-500.0,0.00027397,6]
[330092836,1718989945522,-500.0,0.00027397,6]
[330092837,1718989945532,-500.0,0.00027397,6]
[330092838,1718989945541,-150.0,0.00027397,2]
[330092839,1718989945551,-500.0,0.00027397,6]
[330092840,1718989945561,-500.0,0.00027397,6]
[330092841,1718989945570,-500.0,0.00027397,6]
[330092842,1718989945580,-500.0,0.00027397,6]
[330092843,1718989945591,-500.0,0.00027397,6]
[330092844,1718989945600,-500.0,0.00027397,6]
[330092845,1718989945610,-1000.0,0.00027397,13]
[330092846,1718989945621,-500.0,0.00027397,6]
[330092847,1718989945631,-500.0,0.00027397,6]
[330092848,1718989945641,-500.0,0.00027397,6]
[330092849,1718989945651,-500.0,0.00027397,6]
[330092850,1718989945661,-500.0,0.00027397,6]
[330092851,1718989945675,-500.0,0.00027397,6]
[330092852,1718989945686,-500.0,0.00027397,6]
[330092853,1718989945696,-500.0,0.00027397,6]
[330092854,1718989945706,-500.0,0.00027397,6]
[330092855,1718989945716,-500.0,0.00027397,6]
[330092856,1718989945727,-500.0,0.00027397,6]
[330092857,1718989945736,-500.0,0.00027397,6]
[330092858,1718989945745,-1000.0,0.00027397,13]
[330092859,1718989945754,-748.0,0.00027397,13]
[330092860,1718989945764,-630.8,0.00027397,2]
[330092861,1718989945774,-500.0,0.00027397,6]
[330092862,1718989945784,-151.0,0.00027397,7]
[330092863,1718989945793,-151.0,0.00027397,7]
[330092864,1718989945803,-151.0,0.00027397,7]
[330092865,1718989945812,-151.0,0.00027397,7]
[330092866,1718989945822,-151.0,0.00027397,7]
[330092867,1718989945832,-151.0,0.00027397,7]
[330092868,1718989945841,-151.0,0.00027397,7]
[330092869,1718989945850,-151.0,0.00027397,7]
[330092870,1718989945860,-151.0,0.00027397,7]
[330092871,1718989945870,-151.0,0.00027397,7]
[330092872,1718989945880,-151.0,0.00027397,7]
[330092873,1718989945889,-151.0,0.00027397,7]
[330092874,1718989945899,-151.0,0.00027397,7]
[330092875,1718989945909,-202.116392,0.00027397,7]
[330092876,1718989945918,-15921.45,0.00027397,2]
[330092877,1718989945928,-9023.89,0.00027397,10]
[330092878,1718989945938,-500.0,0.00027397,6]
[330092879,1718989945947,-7519.91,0.00027397,10]
[330092880,1718989945956,-300.0,0.00027397,10]
[330092881,1718989945966,-300.0,0.00027397,10]
[330092882,1718989945976,-300.0,0.00027397,10]
[330092883,1718989945985,-300.0,0.00027397,10]
[330092884,1718989945995,-300.0,0.00027397,10]
[330092885,1718989946005,-300.0,0.00027397,10]
[330092886,1718989946015,-300.0,0.00027397,10]
[330092887,1718989946025,-300.0,0.00027397,10]
[330092888,1718989946034,-300.0,0.00027397,10]
[330092889,1718989946043,-301.83040418,0.00027397,10]
[330092890,1718989946053,-300.0,0.00027397,10]
[330092891,1718989946063,-300.0,0.00027397,10]
[330092892,1718989946072,-303.6255318,0.00027397,10]
[330092893,1718989946082,-300.0,0.00027397,10]
[330092894,1718989946091,-300.0,0.00027397,10]
[330092895,1718989946101,-409.54279926,0.00027397,10]
[330092896,1718989946111,-300.0,0.00027397,10]
[330092897,1718989946123,-300.0,0.00027397,10]
[330092898,1718989946133,-300.0,0.00027397,10]
[330092899,1718989946143,-300.0,0.00027397,10]
[330092900,1718989946153,-300.0,0.00027397,10]
[330092901,1718989946163,-300.0,0.00027397,10]
[330092902,1718989946174,-300.0,0.00027397,10]
[330092903,1718989946184,-300.0,0.00027397,10]
[330092904,1718989946194,-300.0,0.00027397,10]
[330092905,1718989946205,-300.0,0.00027397,10]
[330092906,1718989946214,-3370.30764625,0.000274,2]
[330092907,1718989946223,-5000.0,0.000274,2]
[330092908,1718989946235,-1000.0,0.000274,2]
[330092909,1718989946244,-500.0,0.000274,2]
[330092910,1718989946254,-1200.0,0.000274,2]
[330092911,1718989946267,-6717.90681156,0.000274,2]
[330092912,1718989946276,-2000.0,0.000274,2]
[330092913,1718989946286,-1554.97,0.00027409,2]
[330092914,1718989946296,-4679.96,0.00027457,2]
[330092915,1718989946306,-2501.25,0.00027474,2]
[330092916,1718989946316,-189.94794261,0.000275,2]
[330092917,1718989946325,-47223.57329295,0.000275,2]
[330092918,1718989946335,-260.5932931,0.000275,2]
[330092919,1718989946346,-14591.62,0.000275,2]
[330092920,1718989946355,-3920.37,0.000275,2]
[330092921,1718989946364,-150.0,0.00027534,30]
[330092922,1718989946374,-2793.25,0.00027536,2]
[330092923,1718989946383,-1000.0,0.00027574,2]
[330092924,1718989946393,-500.0,0.00027595,2]
[330092925,1718989946403,-150.0,0.00027616,120]
[330092926,1718989946414,-4609.47,0.00027636,2]
[330092927,1718989946426,-1356.86,0.00027647,4]
[330092928,1718989946436,-3062.37,0.00027647,4]
[330092929,1718989946446,-1533.09,0.00027647,4]
[330092930,1718989946457,-5990.91,0.00027647,4]
[330092931,1718989946468,-1110.17,0.00027647,4]
[330092932,1718989946479,-11925.19,0.00027647,4]
[330092933,1718989946489,-3672.46,0.00027647,4]
[330092934,1718989946498,-6178.73,0.00027647,4]
[330092935,1718989946508,-1501.96,0.00027647,4]
[330092936,1718989946519,-3518.52,0.00027647,4]
[330092937,1718989946529,-1853.87,0.00027652,2]
[330092938,1718989946540,-6274.4997232,0.00027652,2]
[330092939,1718989946551,-18693.1324879,0.00027652,2]
[330092940,1718989946560,-21896.0450098,0.00027652,2]
[330092941,1718989946569,-1989.12,0.00027659,4]
[330092942,1718989946579,-2398.6,0.00027659,4]
[330092943,1718989946588,-42723.34,0.00027659,4]
[330092944,1718989946598,-1860.96,0.00027659,4]
[330092945,1718989946608,-7757.24,0.00027659,4]
[330092946,1718989946618,-2969.44,0.00027659,4]
[330092947,1718989946628,-2619.5,0.00027659,4]
[330092948,1718989946638,-4343.94,0.00027659,4]
[330092949,1718989946649,-946.76,0.00027659,4]
[330092950,1718989946660,-1067.33,0.00027659,4]
[330092951,1718989946670,-11069.13,0.00027659,4]
[330092952,1718989946680,-2041.56,0.00027659,4]
[330092953,1718989946688,-871.25,0.0002766,4]
[330092954,1718989946698,-2040.63,0.0002766,4]
[330092955,1718989946708,-1063.28,0.0002766,4]
[330092956,1718989946719,-2566.45,0.0002766,4]
[330092957,1718989946731,-1747.85,0.0002766,4]
[330092958,1718989946741,-574.66,0.0002766,4]
[330092959,1718989946750,-1705.93,0.0002766,4]
[330092960,1718989946761,-790.72,0.0002766,4]
[330092961,1718989946771,-614.11,0.0002766,4]
[330092962,1718989946781,-1508.15,0.0002766,4]
[330092963,1718989946791,-655.33,0.0002766,4]
[330092964,1718989946802,-900.76,0.0002766,4]
[330092965,1718989946811,-1711.8,0.0002766,4]
[330092966,1718989946822,-500.0,0.0002766,4]
[330092967,1718989946831,-500.0,0.0002766,4]
[330092968,1718989946842,-1259.32,0.0002766,4]
[330092969,1718989946852,-543.58,0.0002766,4]
[330092970,1718989946863,-1395.51,0.0002766,4]
[330092971,1718989946873,-500.0,0.0002766,4]
[330092972,1718989946884,-779.08,0.0002766,4]
[330092973,1718989946893,-882.56,0.0002766,4]
[330092974,1718989946902,-1115.61,0.0002766,4]
[330092975,1718989946913,-500.0,0.0002766,4]
[330092976,1718989946922,-1759.77,0.0002766,4]
[330092977,1718989946932,-562.58,0.0002766,4]
[330092978,1718989946942,-1118.22,0.0002766,4]
[330092979,1718989946952,-1073.61,0.0002766,4]
[330092980,1718989946962,-1028.37,0.0002766,4]
[330092981,1718989946972,-565.65,0.0002766,4]
[330092982,1718989946983,-1694.42,0.0002766,4]
[330092983,1718989946993,-538.43,0.0002766,4]
[330092984,1718989947004,-1124.0,0.0002766,4]
[330092985,1718989947015,-1310.65,0.0002766,4]
[330092986,1718989947026,-1974.58,0.0002766,4]
[330092987,1718989947036,-1456.87,0.0002766,4]
[330092988,1718989947045,-1560.47,0.0002766,4]
[330092989,1718989947056,-1350.6,0.0002766,4]
[330092990,1718989947067,-766.53,0.0002766,4]
[330092991,1718989947077,-209.58,0.0002766,4]
[330092992,1718989947087,-1457.49,0.0002766,4]
[330092993,1718989947097,-1549.35,0.0002766,4]
[330092994,1718989947106,-1276.6,0.0002766,4]
[330092995,1718989947122,-661.51,0.0002766,4]
[330092996,1718989947132,-616.1,0.0002766,4]
[330092997,1718989947142,-759.07,0.0002766,4]
[330092998,1718989947153,-1007.76,0.0002766,4]
[330092999,1718989947163,-558.75,0.0002766,4]
[330093000,1718989947173,-520.63,0.0002766,4]
[330093001,1718989947184,-500.0,0.0002766,4]
[330093002,1718989947194,-371.45298681,0.0002766,4]
[330093003,1718989947204,-750.4,0.0002766,4]
[330093004,1718989947214,-474.88018683,0.0002766,4]
[330093005,1718989947224,-500.0,0.0002766,4]
[330093006,1718989947234,-674.53,0.0002766,4]
[330093007,1718989947244,-919.98,0.0002766,4]
[330093008,1718989947254,-1723.58,0.0002766,4]
[330093009,1718989947263,-226.6,0.0002766,4]
[330093010,1718989947273,-572.44,0.0002766,4]
[330093011,1718989947283,-966.63,0.0002766,4]
[330093012,1718989947292,-574.64,0.0002766,4]
[330093013,1718989947302,-551.74,0.0002766,4]
[330093014,1718989947311,-500.0,0.0002766,4]
[330093015,1718989947320,-853.88,0.0002766,4]
[330093016,1718989947330,-2295.96,0.0002766,5]
[330093017,1718989947340,-769.31,0.0002766,4]
[330093018,1718989947349,-584.18,0.0002766,4]
[330093019,1718989947358,-754.91,0.0002766,4]
[330093020,1718989947368,-500.0,0.0002766,4]
[330093021,1718989947378,-920.79,0.0002766,4]
[330093022,1718989947387,-2478.71,0.0002766,4]
[330093023,1718989947396,-843.52,0.0002766,4]
[330093024,1718989947406,-667.94,0.0002766,4]
[330093025,1718989947416,-878.77,0.0002766,4]
[330093026,1718989947425,-1915.42,0.0002766,4]
[330093027,1718989947435,-1207.42,0.0002766,4]
[330093028,1718989947445,-327.97173924,0.0002766,4]
[330093029,1718989947455,-944.02,0.0002766,4]
[330093030,1718989947464,-1304.29,0.0002766,4]
[330093031,1718989947474,-500.0,0.0002766,4]
[330093032,1718989947485,-729.79,0.0002766,4]
[330093033,1718989947494,-1256.24,0.0002766,4]
[330093034,1718989947505,-656.57,0.0002766,4]
[330093035,1718989947514,-1852.92,0.0002766,4]
[330093036,1718989947524,-1422.04,0.0002766,4]
[330093037,1718989947534,-625.57,0.0002766,4]
[330093038,1718989947546,-666.91,0.0002766,4]
[330093039,1718989947555,-1499.6,0.0002766,4]
[330093040,1718989947565,-2424.04,0.0002766,4]
[330093041,1718989947576,-765.5,0.0002766,4]
[330093042,1718989947585,-4987.88,0.0002766,4]
[330093043,1718989947594,-2211.22,0.0002766,4]
[330093044,1718989947604,-915.87,0.0002766,4]
[330093045,1718989947614,-787.23,0.0002766,4]
[330093046,1718989947624,-637.63,0.0002766,4]
[330093047,1718989947634,-1221.9,0.0002766,4]
[330093048,1718989947643,-1018.75,0.0002766,4]
[330093049,1718989947654,-501.59,0.0002766,4]
[330093050,1718989947664,-500.0,0.0002766,4]
[330093051,1718989947674,-869.8,0.0002766,4]
[330093052,1718989947685,-500.0,0.0002766,8]
[330093053,1718989947695,-748.62,0.0002766,4]
[330093054,1718989947706,-2336.91,0.0002766,4]
[330093055,1718989947718,-1361.85,0.0002766,4]
[330093056,1718989947729,-1018.85,0.0002766,4]
[330093057,1718989947739,-16289.33,0.0002766,4]
[330093058,1718989947748,-2349.59,0.0002766,4]
[330093059,1718989947758,-650.0,0.0002766,4]
[330093060,1718989947769,-500.0,0.0002766,4]
[330093061,1718989947779,-979.16,0.0002766,4]
[330093062,1718989947789,-772.03,0.0002766,4]
[330093063,1718989947798,-1085.42,0.0002766,4]
[330093064,1718989947810,-581.94,0.0002766,4]
[330093065,1718989947819,-1856.06,0.0002766,4]
[330093066,1718989947830,-1071.94,0.0002766,4]
[330093067,1718989947840,-676.76,0.0002766,4]
[330093068,1718989947851,-1530.22,0.0002766,4]
[330093069,1718989948054,-500.0,0.0002766,4]
[330093070,1718989948079,-1352.93,0.0002766,4]
[330093071,1718989948089,-828.24,0.0002766,4]
[330093072,1718989948099,-1938.16,0.0002766,4]
[330093073,1718989948108,-758.24,0.0002766,4]
[330093074,1718989948120,-556.62,0.0002766,4]
[330093075,1718989948132,-2261.53,0.0002766,4]
[330093076,1718989948142,-2348.18,0.0002766,4]
[330093077,1718989948152,-600.2,0.0002766,4]
[330093078,1718989948163,-200.0,0.0002766,7]
[330093079,1718989948174,-1091.2,0.0002766,4]
[330093080,1718989948184,-1100.71,0.0002766,4]
[330093081,1718989948194,-12938.97,0.0002766,4]
[330093082,1718989948205,-1965.19,0.0002766,4]
[330093083,1718989948216,-638.92,0.0002766,4]
[330093084,1718989948227,-635.23,0.0002766,4]
[330093085,1718989948237,-1762.14,0.0002766,4]
[330093086,1718989948247,-1859.99,0.0002766,4]
[330093087,1718989948256,-992.0,0.0002766,4]
[330093088,1718989948265,-656.75,0.0002766,4]
[330093089,1718989948275,-2222.41,0.0002766,4]
[330093090,1718989948284,-860.86,0.0002766,4]
[330093091,1718989948294,-1049.63,0.0002766,4]
[330093092,1718989948304,-672.47,0.0002766,4]
[330093093,1718989948314,-536.90716185,0.0002766,4]
[330093094,1718989948324,-3375.56,0.0002766,4]
[330093095,1718989948334,-2480.67,0.0002766,4]
[330093096,1718989948343,-652.86,0.0002766,4]
[330093097,1718989948353,-2569.55,0.0002766,4]
[330093098,1718989948363,-258008.37096987,0.00027667,2]
[330093099,1718989948373,-500.0,0.0002767,4]
[330093100,1718989948382,-1833.6,0.0002767,4]
[330093101,1718989948392,-1662.17,0.0002767,4]
[330093102,1718989948401,-1196.01,0.0002767,4]
[330093103,1718989948411,-1323.04,0.0002767,4]
[330093104,1718989948420,-1815.14,0.0002767,4]
[330093105,1718989948430,-1488.18,0.0002767,4]
[330093106,1718989948439,-657.08,0.0002767,4]
[330093107,1718989948449,-794.21,0.0002767,4]
[330093108,1718989948459,-2173.9,0.0002767,4]
[330093109,1718989948468,-1700.13,0.0002767,4]
[330093110,1718989948480,-703.12,0.0002767,4]
[330093111,1718989948489,-1792.19,0.0002767,4]
[330093112,1718989948499,-645.07,0.0002767,4]
[330093113,1718989948509,-183.45148743,0.0002767,4]
[330093114,1718989948519,-831.31,0.0002767,4]
[330093115,1718989948528,-1274.46,0.0002767,4]
[330093116,1718989948543,-462.9,0.0002767,4]
[330093117,1718989948553,-1390.32,0.0002767,4]
[330093118,1718989948563,-2085.31,0.0002767,4]
[330093119,1718989948572,-2038.36,0.0002767,4]
[330093120,1718989948582,-255.01549989,0.0002767,4]
[330093121,1718989948592,-961.12,0.0002767,4]
[330093122,1718989948601,-875.07,0.0002767,4]
[330093123,1718989948611,-727.93,0.0002767,4]
[330093124,1718989948621,-1432.85,0.0002767,4]
[330093125,1718989948630,-1981.72,0.0002767,4]
[330093126,1718989948640,-500.0,0.0002767,4]
[330093127,1718989948649,-1176.2,0.0002767,4]
[330093128,1718989948659,-500.0,0.0002767,4]
[330093129,1718989948669,-1836.11,0.0002767,4]
[330093130,1718989948678,-1666.62,0.0002767,4]
[330093131,1718989948688,-1088.29,0.0002767,4]
[330093132,1718989948698,-500.0,0.0002767,4]
[330093133,1718989948707,-1712.42,0.0002767,4]
[330093134,1718989948717,-864.04,0.0002767,4]
[330093135,1718989948726,-1441.44,0.0002767,4]
[330093136,1718989948738,-500.0,0.0002767,4]
[330093137,1718989948747,-664.38,0.0002767,4]
[330093138,1718989948757,-914.89,0.0002767,4]
[330093139,1718989948766,-1656.03,0.0002767,4]
[330093140,1718989948776,-2699.53,0.0002767,4]
[330093141,1718989948785,-1310.25,0.0002767,4]
[330093142,1718989948795,-4009.92,0.0002767,4]
[330093143,1718989948805,-1193.59,0.0002767,4]
[330093144,1718989948814,-500.0,0.00027671,4]
[330093145,1718989948824,-710.94,0.00027671,4]
[330093146,1718989948833,-500.0,0.00027671,4]
[330093147,1718989948843,-797.24,0.00027671,4]
[330093148,1718989948852,-617.5,0.00027671,4]
[330093149,1718989948862,-798.04,0.00027671,4]
[330093150,1718989948872,-735.75,0.00027671,4]
[330093151,1718989948882,-754.93,0.00027671,4]
[330093152,1718989948891,-595.79,0.00027671,4]
[330093153,1718989948901,-738.1,0.00027671,4]
[330093154,1718989948910,-1205.55,0.00027671,4]
[330093155,1718989948920,-573.57634818,0.00027671,4]
[330093156,1718989948929,-522.35,0.00027671,4]
[330093157,1718989948940,-985.93,0.00027671,4]
[330093158,1718989948949,-668.33,0.00027671,4]
[330093159,1718989948959,-548.21,0.00027671,4]
[330093160,1718989948968,-679.56,0.00027671,4]
[330093161,1718989948980,-500.0,0.00027671,4]
[330093162,1718989948989,-780.77,0.00027671,4]
[330093163,1718989948999,-582.75,0.00027671,4]
[330093164,1718989949008,-584.71,0.00027671,4]
[330093165,1718989949018,-563.5,0.00027671,4]
[330093166,1718989949028,-1042.2,0.00027671,4]
[330093167,1718989949037,-588.19,0.00027671,4]
[330093168,1718989949047,-687.44,0.00027671,4]
[330093169,1718989949056,-811.36,0.00027671,4]
[330093170,1718989949065,-717.66,0.00027671,4]
[330093171,1718989949074,-621.56,0.00027671,4]
[330093172,1718989949083,-531.24,0.00027671,4]
[330093173,1718989949092,-150.0,0.00027671,30]
[330093174,1718989949101,-1201.37,0.00027671,4]
[330093175,1718989949111,-522.9,0.00027671,4]
[330093176,1718989949123,-742.2,0.00027671,4]
[330093177,1718989949133,-1192.22,0.00027671,4]
[330093178,1718989949142,-938.16,0.00027671,4]
[330093179,1718989949151,-1372.38,0.00027671,4]
[330093180,1718989949161,-500.0,0.00027671,4]
[330093181,1718989949170,-624.64,0.00027671,4]
[330093182,1718989949180,-1457.99,0.00027671,4]
[330093183,1718989949189,-511.55,0.00027671,4]
[330093184,1718989949201,-595.44,0.00027671,4]
[330093185,1718989949210,-963.23,0.00027671,4]
[330093186,1718989949219,-759.23,0.00027671,4]
[330093187,1718989949230,-1020.76,0.00027671,4]
[330093188,1718989949240,-1064.78,0.00027671,4]
[330093189,1718989949249,-873.22,0.00027671,4]
[330093190,1718989949258,-733.93,0.00027671,4]
[330093191,1718989949268,-2686.69,0.00027671,4]
[330093192,1718989949278,-1011.28,0.00027671,4]
[330093193,1718989949288,-852.94,0.00027671,4]
[330093194,1718989949299,-554.48,0.00027671,4]
[330093195,1718989949309,-768.74,0.00027671,4]
[330093196,1718989949320,-1467.03,0.00027671,4]
[330093197,1718989949330,-1066.65,0.00027671,4]
[330093198,1718989949339,-500.0,0.00027671,4]
[330093199,1718989949349,-735.92,0.00027671,4]
[330093200,1718989949359,-899.57,0.00027671,4]
[330093201,1718989949370,-1342.26,0.00027671,4]
[330093202,1718989949380,-585.36,0.00027671,4]
[330093203,1718989949390,-509.69,0.00027671,4]
[330093204,1718989949401,-667.28,0.00027671,4]
[330093205,1718989949411,-2179.3,0.00027671,4]
[330093206,1718989949422,-906.35,0.00027671,4]
[330093207,1718989949432,-858.28,0.00027671,4]
[330093208,1718989949441,-559.84,0.00027671,4]
[330093209,1718989949452,-1415.8,0.00027671,4]
[330093210,1718989949472,-1930.31,0.00027671,4]
[330093211,1718989949485,-1505.14,0.00027671,4]
[330093212,1718989949495,-859.86,0.00027671,4]
[330093213,1718989949507,-642.24,0.00027671,4]
[330093214,1718989949518,-1397.1,0.00027671,4]
[330093215,1718989949528,-602.59,0.00027671,4]
[330093216,1718989949541,-570.91,0.00027671,4]
[330093217,1718989949552,-669.19,0.00027671,4]
[330093218,1718989949565,-1901.91,0.00027671,4]
[330093219,1718989949575,-1273.57,0.00027671,4]
[330093220,1718989949586,-963.28,0.00027671,4]
[330093221,1718989949597,-532.82,0.00027671,4]
[330093222,1718989949607,-2148.29,0.00027671,4]
[330093223,1718989949618,-904.13,0.00027671,4]
[330093224,1718989949628,-1923.19,0.00027671,4]
[330093225,1718989949638,-1655.82,0.00027671,4]
[330093226,1718989949649,-590.93,0.00027671,4]
[330093227,1718989949660,-511.56,0.00027671,4]
[330093228,1718989949671,-1612.01,0.00027671,4]
[330093229,1718989949681,-2137.42,0.00027671,4]
[330093230,1718989949692,-573.05,0.00027671,4]
[330093231,1718989949702,-3053.94,0.00027671,4]
[330093232,1718989949712,-639.37,0.00027671,4]
[330093233,1718989949722,-2243.82,0.00027671,4]
[330093234,1718989949734,-682.46,0.00027671,4]
[330093235,1718989949743,-1600.73,0.00027671,4]
[330093236,1718989949753,-696.06,0.00027671,4]
[330093237,1718989949763,-1542.7,0.00027671,4]
[330093238,1718989949772,-1105.98,0.00027671,4]
[330093239,1718989949784,-2659.75,0.00027671,4]
[330093240,1718989949795,-833.57,0.00027671,4]
[330093241,1718989949807,-1549.93,0.00027671,4]
[330093242,1718989949817,-1158.3,0.00027671,4]
[330093243,1718989949828,-533.64,0.00027671,4]
[330093244,1718989949839,-833.78,0.00027671,4]
[330093245,1718989949850,-685.86,0.00027671,4]
[330093246,1718989949860,-1090.97,0.00027671,4]
[330093247,1718989949872,-599.47,0.00027671,4]
[330093248,1718989949883,-1289.2,0.00027671,4]
[330093249,1718989949894,-2819.08,0.00027671,4]
[330093250,1718989949905,-591.52,0.00027671,4]
[330093251,1718989949916,-7009.44,0.00027671,4]
[330093252,1718989949927,-1505.93,0.00027671,4]
[330093253,1718989949938,-824.93,0.00027671,4]
[330093254,1718989949948,-186.59318391,0.00027671,4]
[330093255,1718989949958,-3331.02,0.00027671,4]
[330093256,1718989949968,-1405.37,0.00027671,4]
[330093257,1718989949978,-5922.66,0.00027671,4]
[330093258,1718989949990,-905.75,0.00027671,4]
[330093259,1718989950000,-6608.91,0.00027671,4]
[330093260,1718989950011,-580.05,0.00027671,4]
[330093261,1718989950021,-540.71,0.00027671,4]
[330093262,1718989950032,-838.13,0.00027671,4]
[330093263,1718989950042,-823.35,0.00027671,4]
[330093264,1718989950051,-535.25,0.00027671,4]
[330093265,1718989950061,-887.04,0.00027671,4]
[330093266,1718989950071,-1378.35,0.00027671,4]
[330093267,1718989950080,-500.0,0.00027671,4]
[330093268,1718989950090,-1812.66,0.00027671,4]
[330093269,1718989950100,-647.36,0.00027671,4]
[330093270,1718989950111,-1256.45,0.00027671,4]
[330093271,1718989950124,-772.11,0.00027671,4]
[330093272,1718989950134,-939.73,0.00027671,4]
[330093273,1718989950143,-1304.96,0.00027671,4]
[330093274,1718989950153,-1184.79,0.00027671,4]
[330093275,1718989950163,-1482.67,0.00027671,4]
[330093276,1718989950174,-1172.14,0.00027671,4]
[330093277,1718989950184,-1060.14,0.00027671,4]
[330093278,1718989950194,-3886.53,0.00027671,4]
[330093279,1718989950207,-654.99,0.00027671,4]
[330093280,1718989950217,-1021.14,0.00027671,4]
[330093281,1718989950227,-25963.77,0.00027671,4]